fUST/lending_fUST_20240411
["ID","MTS","AMOUNT","RATE_DAILY","PERIOD"]
[322138057,1712839846764,-500.0,0.0003589,14]
[322138058,1712839846773,-500.0,0.0003589,14]
[322138059,1712839846783,-500.0,0.0003589,14]
[322138060,1712839846792,-503.94666909,0.0003589,14]
[322138061,1712839846801,-500.0,0.0003589,14]
[322138062,1712839846811,-500.0,0.0003589,14]
[322138063,1712839846820,-500.0,0.0003589,14]
[322138064,1712839846829,-504.39479272,0.0003589,14]
[322138065,1712839846838,-410.82351968,0.0003589,14]
[322138066,1712839846847,-500.0,0.0003589,14]
[322138067,1712839846858,-502.59425572,0.0003589,14]
[322138068,1712839846867,-503.51018734,0.0003589,14]
[322138069,1712839846875,-500.0,0.0003589,14]
[322138070,1712839846884,-500.0,0.0003589,14]
[322138071,1712839846894,-505.26516391,0.0003589,14]
[322138072,1712839846903,-500.0,0.0003589,14]
[322138073,1712839846912,-309.49726089,0.0003589,14]
[322138074,1712839846921,-500.0,0.0003589,14]
[322138075,1712839846930,-500.0,0.0003589,14]
[322138076,1712839846939,-251.85993389,0.0003589,14]
[322138077,1712839846950,-500.0,0.0003589,14]
[322138078,1712839846958,-500.0,0.0003589,14]
[322138079,1712839846967,-500.0,0.0003589,14]
[322138080,1712839846976,-500.0,0.0003589,14]
[322138081,1712839846985,-500.0,0.0003589,14]
[322138082,1712839846994,-500.0,0.0003589,14]
[322138083,1712839847003,-500.0,0.0003589,14]
[322138084,1712839847011,-500.0,0.0003589,14]
[322138085,1712839847020,-500.0,0.0003589,14]
[322138086,1712839847029,-500.0,0.0003589,14]
[322138087,1712839847038,-506.49520735,0.0003589,14]
[322138088,1712839847047,-500.0,0.0003589,14]
[322138089,1712839847056,-535.57864615,0.0003589,14]
[322138090,1712839847065,-500.0,0.0003589,14]
[322138091,1712839847074,-500.0,0.0003589,14]
[322138092,1712839847082,-503.98448886,0.0003589,14]
[322138093,1712839847091,-500.0,0.0003589,14]
[322138094,1712839847100,-502.19660333,0.0003589,14]
[322138095,1712839847110,-500.0,0.0003589,14]
[322138096,1712839847119,-504.78862704,0.0003589,14]
[322138097,1712839847128,-500.0,0.0003589,14]
[322138098,1712839847137,-500.0,0.0003589,14]
[322138099,1712839847147,-503.04744794,0.0003589,14]
[322138100,1712839847156,-500.0,0.0003589,14]
[322138101,1712839847166,-500.0,0.0003589,14]
[322138102,1712839847175,-500.0,0.0003589,14]
[322138103,1712839847185,-503.25803739,0.0003589,14]
[322138104,1712839847199,-291.13469965,0.0003589,14]
[322138105,1712839847208,-500.0,0.0003589,14]
[322138106,1712839847217,-500.0,0.0003589,14]
[322138107,1712839847227,-500.0,0.0003589,14]
[322138108,1712839847236,-506.35885411,0.0003589,14]
[322138109,1712839847246,-500.0,0.0003589,14]
[322138110,1712839847256,-500.0,0.0003589,14]
[322138111,1712839847265,-500.0,0.0003589,14]
[322138113,1712839847274,-500.0,0.0003589,14]
[322138114,1712839847284,-556.35122411,0.0003589,14]
[322138115,1712839847293,-500.0,0.0003589,14]
[322138116,1712839847302,-500.0,0.0003589,14]
[322138117,1712839847313,-500.0,0.0003589,14]
[322138118,1712839847322,-151.0,0.0003589,14]
[322138119,1712839847332,-500.0,0.0003589,14]
[322138120,1712839847340,-500.0,0.0003589,14]
[322138121,1712839847350,-500.0,0.0003589,14]
[322138122,1712839847360,-501.41868581,0.0003589,14]
[322138123,1712839847369,-500.0,0.0003589,14]
[322138124,1712839847378,-502.15348176,0.0003589,14]
[322138125,1712839847388,-500.0,0.0003589,14]
[322138126,1712839847455,-227.52141825,0.0003589,14]
[322138127,1712839847472,-500.0,0.0003589,14]
[322138128,1712839847481,-500.0,0.0003589,14]
[322138129,1712839847491,-500.0,0.0003589,14]
[322138130,1712839847501,-500.0,0.0003589,14]
[322138131,1712839847510,-500.0,0.0003589,14]
[322138132,1712839847520,-500.0,0.0003589,14]
[322138133,1712839847530,-500.0,0.0003589,14]
[322138134,1712839847539,-503.23930922,0.0003589,14]
[322138135,1712839847548,-343.17270435,0.0003589,14]
[322138136,1712839847557,-500.0,0.0003589,14]
[322138137,1712839847567,-500.0,0.0003589,14]
[322138138,1712839847576,-503.86496679,0.0003589,14]
[322138139,1712839847585,-478.89071637,0.0003589,14]
[322138140,1712839847594,-500.0,0.0003589,14]
[322138141,1712839847604,-500.0,0.0003589,14]
[322138142,1712839847614,-501.52968456,0.0003589,14]
[322138143,1712839847623,-500.0,0.0003589,14]
[322138144,1712839847634,-168.98305112,0.0003589,14]
[322138145,1712839847644,-500.0,0.0003589,14]
[322138146,1712839847654,-500.64519832,0.0003589,14]
[322138147,1712839847663,-500.0,0.0003589,14]
[322138148,1712839847674,-500.0,0.0003589,14]
[322138149,1712839847683,-500.0,0.0003589,14]
[322138150,1712839847699,-501.35682496,0.0003589,14]
[322138151,1712839847708,-500.0,0.0003589,14]
[322138152,1712839847717,-500.0,0.0003589,14]
[322138153,1712839847727,-501.16849589,0.0003589,14]
[322138154,1712839847736,-500.0,0.0003589,14]
[322138155,1712839847745,-500.0,0.0003589,14]
[322138156,1712839847755,-500.0,0.0003589,14]
[322138157,1712839847764,-500.0,0.0003589,14]
[322138158,1712839847774,-1023.65,0.0003589,14]
[322138159,1712839847783,-500.0,0.0003589,14]
[322138160,1712839847793,-500.0,0.0003589,14]
[322138161,1712839847803,-500.0,0.0003589,14]
[322138162,1712839847813,-500.0,0.0003589,14]
[322138163,1712839847823,-500.0,0.0003589,14]
[322138164,1712839847834,-516.2384129,0.0003589,14]
[322138165,1712839847843,-500.0,0.0003589,14]
[322138166,1712839847852,-185.84393006,0.0003589,14]
[322138167,1712839847863,-500.0,0.0003589,14]
[322138168,1712839847872,-503.70063523,0.0003589,14]
[322138169,1712839847882,-605.41829465,0.0003589,14]
[322138170,1712839847891,-500.0,0.0003589,14]
[322138171,1712839847901,-500.0,0.0003589,14]
[322138172,1712839847910,-500.0,0.0003589,14]
[322138173,1712839847919,-500.82561834,0.0003589,14]
[322138174,1712839847928,-500.0,0.0003589,14]
[322138175,1712839847938,-741.64,0.0003589,14]
[322138176,1712839847950,-500.0,0.0003589,14]
[322138177,1712839847960,-500.0,0.0003589,14]
[322138178,1712839847969,-500.0,0.0003589,14]
[322138179,1712839847979,-500.0,0.0003589,14]
[322138180,1712839847988,-573.22741759,0.0003589,14]
[322138181,1712839847997,-500.0,0.0003589,14]
[322138182,1712839848006,-500.0,0.0003589,14]
[322138183,1712839848015,-500.0,0.0003589,14]
[322138184,1712839848025,-500.0,0.0003589,14]
[322138185,1712839848034,-500.0,0.0003589,14]
[322138186,1712839848043,-500.0,0.0003589,14]
[322138187,1712839848052,-500.0,0.0003589,14]
[322138188,1712839848061,-500.0,0.0003589,14]
[322138189,1712839848070,-500.0,0.0003589,14]
[322138190,1712839848079,-506.10115789,0.0003589,14]
[322138191,1712839848088,-505.20190021,0.0003589,14]
[322138192,1712839848098,-627.68,0.0003589,14]
[322138193,1712839848107,-500.0,0.0003589,14]
[322138194,1712839848116,-500.0,0.0003589,14]
[322138195,1712839848127,-500.0,0.0003589,14]
[322138196,1712839848138,-500.0,0.0003589,14]
[322138197,1712839848147,-500.0,0.0003589,14]
[322138198,1712839848156,-500.0,0.0003589,14]
[322138199,1712839848166,-500.0,0.0003589,14]
[322138200,1712839848175,-500.0,0.0003589,14]
[322138201,1712839848184,-500.0,0.0003589,14]
[322138202,1712839848196,-500.0,0.0003589,14]
[322138203,1712839848205,-500.0,0.0003589,14]
[322138204,1712839848215,-500.0,0.0003589,14]
[322138205,1712839848224,-556.97339837,0.0003589,14]
[322138206,1712839848233,-500.0,0.0003589,14]
[322138207,1712839848243,-563.04735117,0.0003589,14]
[322138208,1712839848253,-500.98179504,0.0003589,14]
[322138209,1712839848262,-500.0,0.0003589,14]
[322138210,1712839848271,-500.0,0.0003589,14]
[322138211,1712839848281,-500.0,0.0003589,14]
[322138212,1712839848290,-500.0,0.0003589,14]
[322138213,1712839848299,-500.0,0.0003589,14]
[322138214,1712839848308,-500.0,0.0003589,14]
[322138215,1712839848318,-500.0,0.0003589,14]
[322138216,1712839848330,-500.0,0.0003589,14]
[322138217,1712839848340,-500.0,0.0003589,14]
[322138218,1712839848350,-500.0,0.0003589,14]
[322138219,1712839848360,-647.18184354,0.0003589,14]
[322138220,1712839848371,-164.53636416,0.0003589,14]
[322138221,1712839848380,-500.0,0.0003589,14]
[322138222,1712839848390,-226.75301595,0.0003589,14]
[322138223,1712839848400,-500.0,0.0003589,14]
[322138224,1712839848408,-501.87471464,0.0003589,14]
[322138225,1712839848417,-592.78144405,0.0003589,14]
[322138226,1712839848427,-180.78976666,0.0003589,14]
[322138227,1712839848436,-500.0,0.0003589,14]
[322138228,1712839848446,-500.0,0.0003589,14]
[322138229,1712839848455,-500.0,0.0003589,14]
[322138230,1712839848466,-500.0,0.0003589,14]
[322138231,1712839848475,-500.0,0.0003589,14]
[322138232,1712839848485,-500.0,0.0003589,14]
[322138233,1712839848494,-500.0,0.0003589,14]
[322138234,1712839848504,-500.0,0.0003589,14]
[322138235,1712839848514,-504.27041406,0.0003589,14]
[322138236,1712839848524,-500.0,0.0003589,14]
[322138237,1712839848533,-500.0,0.0003589,14]
[322138238,1712839848543,-500.0,0.0003589,14]
[322138239,1712839848553,-500.0,0.0003589,14]
[322138240,1712839848563,-500.0,0.0003589,14]
[322138241,1712839848574,-500.0,0.0003589,14]
[322138242,1712839848585,-500.0,0.0003589,14]
[322138243,1712839848595,-500.0,0.0003589,14]
[322138244,1712839848604,-500.0,0.0003589,14]
[322138245,1712839848616,-500.0,0.0003589,14]
[322138246,1712839848625,-500.0,0.0003589,14]
[322138247,1712839848634,-500.0,0.0003589,14]
[322138248,1712839848645,-413.91850735,0.0003589,14]
[322138249,1712839848655,-500.0,0.0003589,14]
[322138250,1712839848665,-500.0,0.0003589,14]
[322138251,1712839848675,-619.46,0.0003589,14]
[322138252,1712839848684,-500.0,0.0003589,14]
[322138253,1712839848695,-500.0,0.0003589,14]
[322138254,1712839848704,-501.74077231,0.0003589,14]
[322138255,1712839848713,-500.0,0.0003589,14]
[322138256,1712839848722,-502.1336035,0.0003589,14]
[322138257,1712839848731,-500.0,0.0003589,14]
[322138258,1712839848740,-500.0,0.0003589,14]
[322138259,1712839848810,-2157.03,0.0003589,14]
[322138260,1712839848820,-500.0,0.0003589,14]
[322138261,1712839848831,-500.0,0.0003589,14]
[322138262,1712839848840,-1091.98,0.0003589,14]
[322138263,1712839848849,-500.0,0.0003589,14]
[322138264,1712839848858,-500.0,0.0003589,14]
[322138265,1712839848868,-500.0,0.0003589,14]
[322138266,1712839848877,-1313.31,0.0003589,14]
[322138267,1712839848886,-613.38387006,0.0003589,14]
[322138268,1712839848895,-500.0,0.0003589,14]
[322138269,1712839848905,-500.0,0.0003589,14]
[322138270,1712839848914,-500.0,0.0003589,14]
[322138271,1712839848923,-500.0,0.0003589,14]
[322138272,1712839848932,-502.79978275,0.0003589,14]
[322138273,1712839848942,-500.0,0.0003589,14]
[322138274,1712839848954,-1948.99,0.0003589,14]
[322138275,1712839848963,-500.0,0.0003589,14]
[322138276,1712839848973,-3482.63,0.0003589,14]
[322138277,1712839848982,-500.0,0.0003589,14]
[322138278,1712839848991,-500.0,0.0003589,14]
[322138279,1712839849000,-500.0,0.0003589,14]
[322138280,1712839849010,-500.0,0.0003589,14]
[322138281,1712839849019,-500.0,0.0003589,14]
[322138282,1712839849028,-515.86193857,0.0003589,14]
[322138283,1712839849037,-500.0,0.0003589,14]
[322138284,1712839849047,-505.04673356,0.0003589,14]
[322138285,1712839849056,-5770.96,0.0003589,14]
[322138286,1712839849065,-500.0,0.0003589,14]
[322138287,1712839849074,-504.4090043,0.0003589,14]
[322138288,1712839849083,-500.0,0.0003589,14]
[322138289,1712839849092,-502.2496843,0.0003589,14]
[322138290,1712839849102,-500.0,0.0003589,14]
[322138291,1712839849111,-500.0,0.0003589,14]
[322138292,1712839849120,-500.0,0.0003589,14]
[322138293,1712839849129,-500.0,0.0003589,14]
[322138294,1712839849138,-500.0,0.0003589,14]
[322138295,1712839849147,-504.44726382,0.0003589,14]
[322138296,1712839849157,-500.0,0.0003589,14]
[322138297,1712839849166,-500.0,0.0003589,14]
[322138298,1712839849175,-717.64,0.0003589,14]
[322138299,1712839849186,-502.17,0.0003589,14]
[322138300,1712839849198,-500.0,0.0003589,14]
[322138301,1712839849207,-500.0,0.0003589,14]
[322138302,1712839849216,-500.0,0.0003589,14]
[322138303,1712839849225,-871.49,0.0003589,14]
[322138304,1712839849234,-500.0,0.0003589,14]
[322138305,1712839849243,-500.0,0.0003589,14]
[322138306,1712839849253,-500.0,0.0003589,14]
[322138307,1712839849262,-341.83060756,0.0003589,14]
[322138308,1712839849271,-500.0,0.0003589,14]
[322138309,1712839849281,-500.0,0.0003589,14]
[322138310,1712839849290,-500.0,0.0003589,14]
[322138311,1712839849299,-500.0,0.0003589,14]
[322138312,1712839849309,-500.0,0.0003589,14]
[322138313,1712839849318,-500.0,0.0003589,14]
[322138314,1712839849327,-500.0,0.0003589,14]
[322138315,1712839849336,-500.0,0.0003589,14]
[322138316,1712839849345,-501.26573573,0.0003589,14]
[322138317,1712839849355,-500.0,0.0003589,14]
[322138318,1712839849364,-500.0,0.0003589,14]
[322138319,1712839849373,-1595.78,0.0003589,14]
[322138320,1712839849382,-500.0,0.0003589,14]
[322138321,1712839849392,-209.74117907,0.0003589,14]
[322138322,1712839849401,-503.32081109,0.0003589,14]
[322138323,1712839849411,-519.33205673,0.0003589,14]
[322138324,1712839849420,-500.0,0.0003589,14]
[322138325,1712839849429,-500.0,0.0003589,14]
[322138326,1712839849438,-500.0,0.0003589,14]
[322138327,1712839849450,-500.0,0.0003589,14]
[322138328,1712839849460,-1279.8,0.0003589,14]
[322138329,1712839849468,-514.15,0.0003589,14]
[322138330,1712839849478,-500.0,0.0003589,14]
[322138331,1712839849487,-500.0,0.0003589,14]
[322138332,1712839849496,-501.82155502,0.0003589,14]
[322138333,1712839849505,-948.34,0.0003589,14]
[322138334,1712839849514,-500.0,0.0003589,14]
[322138335,1712839849523,-641.03013627,0.0003589,14]
[322138336,1712839849533,-500.0,0.0003589,14]
[322138337,1712839849542,-500.0,0.0003589,14]
[322138338,1712839849551,-728.19,0.0003589,14]
[322138339,1712839849560,-594.97978435,0.0003589,14]
[322138340,1712839849569,-503.13616977,0.0003589,14]
[322138341,1712839849578,-500.0,0.0003589,14]
[322138342,1712839849587,-500.0,0.0003589,14]
[322138343,1712839849597,-500.0,0.0003589,14]
[322138344,1712839849608,-549.07797271,0.0003589,14]
[322138345,1712839849622,-500.0,0.0003589,14]
[322138346,1712839849632,-500.0,0.0003589,14]
[322138347,1712839849641,-500.0,0.0003589,14]
[322138348,1712839849651,-500.0,0.0003589,14]
[322138349,1712839849660,-280.22362201,0.0003589,14]
[322138350,1712839849669,-505.17227875,0.0003589,14]
[322138351,1712839849679,-500.0,0.0003589,14]
[322138352,1712839849689,-505.47820161,0.0003589,14]
[322138353,1712839849700,-500.0,0.0003589,14]
[322138354,1712839849709,-504.50879397,0.0003589,14]
[322138355,1712839849719,-2342.09316463,0.0003589,14]
[322138356,1712839850033,-1395.70232293,0.0003589,14]
[322138357,1712839850045,-4372.08451244,0.0003589,14]
[322138358,1712839850055,-500.0,0.0003589,14]
[322138359,1712839850064,-500.0,0.0003589,14]
[322138360,1712839850074,-500.0,0.0003589,14]
[322138361,1712839850083,-500.0,0.0003589,14]
[322138362,1712839850092,-500.0,0.0003589,14]
[322138363,1712839850102,-1008.73846354,0.0003589,14]
[322138364,1712839850111,-500.0,0.0003589,14]
[322138365,1712839850121,-505.36741741,0.0003589,14]
[322138366,1712839850130,-501.85137152,0.0003589,14]
[322138367,1712839850139,-500.0,0.0003589,14]
[322138368,1712839850149,-129.42999556,0.0003589,14]
[322138369,1712839850161,-370.57000444,0.0003589,14]
[322138370,1712839850171,-63.11021979,0.0003589,14]
[322138371,1712839850324,-436.88978021,0.0003589,14]
[322138372,1712839850334,-500.0,0.0003589,14]
[322138373,1712839850344,-1630.0,0.0003589,14]
[322138374,1712839850353,-500.0,0.0003589,14]
[322138375,1712839850362,-500.0,0.0003589,14]
[322138376,1712839850371,-500.15,0.0003589,14]
[322138377,1712839850381,-500.0,0.0003589,14]
[322138378,1712839850391,-502.77541635,0.0003589,14]
[322138379,1712839850400,-500.0,0.0003589,14]
[322138380,1712839850410,-22.35883921,0.0003589,14]
[322138381,1712839850459,-500.0,0.00035616,14]
[322138382,1712839850468,-559.02490652,0.0003589,14]
[322138383,1712839850479,-448.71045399,0.0003589,14]
[322138384,1712839850488,-500.0,0.0003589,14]
[322138385,1712839850497,-500.0,0.0003589,14]
[322138386,1712839850506,-244.49463949,0.0003589,14]
[322138475,1712840947170,-518.5419639,0.00026723,2]
[322138476,1712840947192,-518.5419639,0.00026723,2]
[322138477,1712840947214,-2581.208065,0.00026724,2]
[322138478,1712840947235,-176.666619,0.00026726,2]
[322138479,1712840947257,-281.7045139,0.00026993,2]
[322138480,1712840947284,-159.33244876,0.00027294,2]
[322138481,1712840947306,-158.161868,0.00027397,2]
[322138482,1712840947327,-210.046351,0.00027397,2]
[322138483,1712840947349,-166.666666,0.00027397,2]
[322138484,1712840947371,-824.06663925,0.000274,2]
[322138485,1712840947392,-239.4000765,0.000275,2]
[322138486,1712840947412,-166.666666,0.00028038,2]
[322138487,1712840947433,-166.666666,0.00028679,2]
[322138488,1712840947452,-202.07693201,0.0002876,2]
[322138489,1712840947474,-300.0,0.00028767,2]
[322138490,1712840947495,-300.0,0.00028767,2]
[322138491,1712840947518,-326.58964384,0.00028768,2]
[322138492,1712840947629,-154.8915759,0.00028768,2]
[322138493,1712840947650,-154.8915759,0.00028768,2]
[322138494,1712840947672,-156.63566121,0.00028768,2]
[322138495,1712840947694,-154.8915759,0.00028768,2]
[322138496,1712840947715,-154.8915759,0.00028768,2]
[322138497,1712840947736,-225.5768185,0.00028768,2]
[322138498,1712840947758,-2677.73315569,0.0002877,2]
[322138594,1712841032841,-329.81366671,0.0002667,2]
[322138596,1712841032850,-3207.1969835,0.00028768,2]
[322138598,1712841032861,-1597.31509919,0.00028769,2]
[322138600,1712841032871,-293.0,0.00028769,2]
[322138602,1712841032881,-300.0,0.00028769,2]
[322138604,1712841032891,-2467.67211509,0.0002877,2]
[322138664,1712841038581,-727.23245068,0.0002877,2]
[322138697,1712841040703,-429.33714796,0.0002877,2]
[322138755,1712842035120,-219.87577781,0.0002667,2]
[322138756,1712842035144,-191.150142,0.00027323,2]
[322138757,1712842035164,-164.26805044,0.00027397,2]
[322138806,1712842232224,-150.0,0.00025297,2]
[322138807,1712842232233,-1380.351255,0.00027,2]
[322138922,1712842248421,-1670.18771209,0.00027,2]
[322138923,1712842248431,-1062.08270881,0.00027397,4]
[322138924,1712842248443,-232.60439517,0.00027397,5]
[322138926,1712842248550,-721.61409751,0.00027397,5]
[322138932,1712842285494,264.71776702,0.00024998,7]
[322138936,1712842355980,264.71776702,0.00024989,7]
[322138938,1712842375986,287.34967735,0.00024993,7]
[322138942,1712842392180,522.65342391,0.00023991,4]
[322138944,1712842406186,178.13427455,0.00023992,4]
[322138945,1712842415313,191.39948593,0.00019193,2]
[322138946,1712842452137,200.0,0.00022121,2]
[322138949,1712842464165,154.87609912,0.00019193,2]
[322138950,1712842464266,10980.2767523,0.00019193,2]
[322138951,1712842464303,5073.62127293,0.00019193,2]
[322138952,1712842469370,691.16124462,0.00019193,2]
[322138953,1712842478949,16053.89802523,0.00019193,2]
[322138955,1712842480171,158.23354161,0.00019193,2]
[322138956,1712842487358,692.23981205,0.00019193,2]
[322138958,1712842500277,1534.56435281,0.00019193,2]
[322138964,1712842617238,-154.87609912,0.00021703,2]
[322138965,1712842617260,-185.68184053,0.00021703,2]
[322138966,1712842617281,-154.87609912,0.00021703,2]
[322138967,1712842617304,-364.77396862,0.00021703,2]
[322138968,1712842617328,-154.87609912,0.00021703,2]
[322138969,1712842617350,-584.97431304,0.00021703,2]
[322138970,1712842617372,-326.58964384,0.00021703,2]
[322138971,1712842617395,-193.09908054,0.00021703,2]
[322138972,1712842617422,-277.18296708,0.00021703,2]
[322138973,1712842617444,-154.87609912,0.00021703,2]
[322138974,1712842617565,-470.227429,0.00021703,2]
[322138975,1712842617589,-154.87609912,0.00021703,2]
[322138976,1712842617613,-154.87609912,0.00021703,2]
[322138977,1712842617637,-154.87609912,0.00021703,2]
[322138978,1712842617662,-300.0,0.00021704,2]
[322138979,1712842617686,-300.0,0.00021704,2]
[322138980,1712842617709,-154.87609912,0.00021704,2]
[322138981,1712842617732,-215.87404724,0.00021704,2]
[322138982,1712842617755,-407.88528427,0.00021704,2]
[322138983,1712842617776,-11370.73589184,0.00021704,2]
[322138984,1712842617799,-9423.90788758,0.00021704,2]
[322138985,1712842617821,-1854.38399609,0.00021704,2]
[322138986,1712842617844,-1494.03785259,0.00021704,2]
[322138987,1712842617866,-1308.15892502,0.00021704,2]
[322138988,1712842617888,-5569.16345896,0.00021704,2]
[322138989,1712842617911,-2937.03373596,0.00021705,2]
[322138990,1712842617934,-687.50427823,0.00021705,2]
[322138991,1712842617956,-154.87609912,0.00021705,2]
[322138992,1712842617980,-59008.25304668,0.00021706,2]
[322138993,1712842618003,-14483.0956426,0.00021707,2]
[322138994,1712842618629,361.03908347,0.00021703,2]
[322139003,1712842812137,8062.4753703,0.00020701,2]
[322139004,1712842824192,361.03908347,0.000216,2]
[322139005,1712842824246,364.77396862,0.000216,2]
[322139007,1712842830662,1169.30623226,0.00019607,2]
[322139008,1712842836391,5569.16345896,0.000216,2]
[322139009,1712842839278,2937.03373596,0.000216,2]
[322139010,1712842839737,326.58964384,0.000216,2]
[322139011,1712842848968,154.87609912,0.000216,2]
[322139012,1712842850592,19143.95477518,0.000216,2]
[322139013,1712842860578,300.0,0.000216,2]
[322139014,1712842861475,300.0,0.000216,2]
[322139015,1712842866589,19143.95477518,0.000216,2]
[322139016,1712842870204,1308.15892502,0.000216,2]
[322139017,1712842882199,157.33760035,0.000216,2]
[322139018,1712842886592,861.98167353,0.000216,2]
[322139019,1712842886636,22755.98720092,0.000216,2]
[322139020,1712842906616,22745.90339692,0.000216,2]
[322139021,1712842914381,59008.25304668,0.000216,2]
[322139022,1712842920695,300.0,0.000216,2]
[322139023,1712842922943,300.0,0.000216,2]
[322139025,1712842980796,300.0,0.000216,2]
[322139026,1712842981997,154.87609912,0.000216,2]
[322139027,1712842983048,300.0,0.000216,2]
[322139029,1712842984857,2581.208065,0.000216,2]
[322139043,1712843040738,300.0,0.000216,2]
[322139044,1712843042120,300.0,0.000216,2]
[322139045,1712843064342,3130.88228344,0.000216,2]
[322139046,1712843078945,385.03819322,0.000216,2]
[322139047,1712843079349,947.60613541,0.000216,2]
[322139049,1712843094120,385.03819322,0.000216,2]
[322139050,1712843099621,548.9788122,0.000216,2]
[322139051,1712843100927,300.0,0.000216,2]
[322139052,1712843101418,300.0,0.000216,2]
[322139053,1712843104027,225.5768185,0.000216,2]
[322139054,1712843112119,384.53705538,0.000216,2]
[322139055,1712843130835,2481.75110895,0.000216,2]
[322139056,1712843130861,5723.5154333,0.000216,2]
[322139057,1712843131880,1723.89925541,0.00019606,2]
[322139058,1712843133194,361.03908347,0.000216,2]
[322139059,1712843135319,364.77396862,0.000216,2]
[322139060,1712843161100,300.0,0.000216,2]
[322139061,1712843161305,300.0,0.000216,2]
[322139064,1712843220782,300.0,0.000216,2]
[322139065,1712843222786,236.0,0.000216,2]
[322139067,1712843242432,1129.6054062,0.00020869,2]
[322139068,1712843249210,225.5768185,0.000216,2]
[322139069,1712843252203,361.03908347,0.000216,2]
[322139070,1712843280674,300.0,0.000216,2]
[322139071,1712843296986,548.9788122,0.000216,2]
[322139076,1712843340637,300.0,0.000216,2]
[322139077,1712843361134,-2440.23611511,0.00021601,2]
[322139078,1712843361157,-5132.52231534,0.00021601,2]
[322139079,1712843361177,-326.58964384,0.00021601,2]
[322139080,1712843361202,-156.03527958,0.00021601,2]
[322139081,1712843361225,-183.12666857,0.00021604,2]
[322139082,1712843361245,-192.26721814,0.000217,2]
[322139083,1712843361265,-548.9788122,0.000217,2]
[322139084,1712843361286,-303.01986483,0.00021701,2]
[322139085,1712843361306,-42932.83415323,0.00021702,2]
[322139086,1712843361337,-1997.36384542,0.00021702,2]
[322139128,1712843432834,-300.0,0.00021701,2]
[322139129,1712843432846,-14078.05504803,0.00021702,2]
[322139130,1712843432857,-11956.6767672,0.00021703,2]
[322139131,1712843432867,-154.87609912,0.00021703,2]
[322139132,1712843432879,-1494.03785259,0.00021704,2]
[322139133,1712843432888,-183.12666853,0.00022303,2]
[322139134,1712843432898,-3719.84092639,0.00022715,2]
[322139136,1712843432908,-758.99123434,0.00022716,2]
[322139137,1712843432918,-215.65109732,0.00022717,2]
[322139139,1712843432928,-159.19908401,0.00022718,2]
[322139141,1712843432938,-155.51283433,0.00022718,2]
[322139142,1712843432947,-185.63459732,0.00022718,2]
[322139143,1712843432958,-165.5763918,0.00022719,2]
[322139144,1712843432969,-205.8366919,0.00022897,2]
[322139145,1712843432979,-250.0,0.00022931,2]
[322139146,1712843432993,-444.797186,0.00022946,2]
[322139147,1712843433003,-242.86748276,0.00023002,2]
[322139149,1712843433012,-183.12666853,0.00023003,2]
[322139150,1712843433022,-23810.7931753,0.00023489,2]
[322139151,1712843433032,-183.12666853,0.00023702,2]
[322139152,1712843433042,-420.0,0.00023871,2]
[322139153,1712843433052,-183.12666853,0.00024402,2]
[322139154,1712843433062,-200.0,0.00024658,2]
[322139155,1712843433071,-380.0,0.00024658,2]